[Event "29. Klatovy A 2023"]
[Site "Klatovy"]
[Date "2023.07.05"]
[Round "5.8"]
[White "Zhang, Brian"]
[Black "Dvorak, Jan"]
[Result "1/2-1/2"]
[ECO "C18"]
[WhiteElo "1821"]
[BlackElo "2176"]
[PlyCount "76"]
[EventDate "2023.07.01"]
[EventType "swiss"]
[EventRounds "9"]
[EventCountry "CZE"]
[TimeControl "120+30"]

1. e4 {[%emt 0:00:05]} e6 {[%emt 0:00:07]} 2. d4 {[%emt 0:00:13]} d5 {[%emt 0:00:06]} 3. Nc3 {[%emt 0:00:44]} Bb4 {[%emt 0:00:08]} 4. e5 {[%emt 0:00:50]} c5 {[%emt 0:00:22]} 5. a3 {[%emt 0:00:26]} Bxc3+ {[%emt 0:00:07]} 6. bxc3 {[%emt 0:00:07]} Qa5 {[%emt 0:00:09]} 7. Bd2 {[%emt 0:04:07]} Qa4 {[%emt 0:02:05]} 8. Qg4 {[%emt 0:05:56]} Kf8 {[%emt 0:01:14]} 9. Nf3 {[%emt 0:19:41]} Nc6 {[%emt 0:06:40]} 10. h4 {[%emt 0:14:03]} Nge7 {[%emt 0:15:29]} 11. h5 {[%emt 0:18:46]} h6 {[%emt 0:03:02]} 12. Bd3 {[%emt 0:15:00]} c4 {[%emt 0:04:16]} 13. Be2 {[%emt 0:00:38]} Qxc2 {[%emt 0:00:53]} 14. Rc1 {[%emt 0:09:18]} Qe4 {[%emt 0:12:08]} 15. Qxe4 {[%emt 0:25:14]} dxe4 {[%emt 0:00:11]} 16. Ng1 {[%emt 0:00:29]} b5 {[%emt 0:03:47]} 17. Rh4 {[%emt 0:04:21]} a5 {[%emt 0:09:28]} 18. a4 {[%emt 0:04:19]} Ba6 {[%emt 0:02:54]} 19. Rxe4 {[%emt 0:01:17]} Nd5 {[%emt 0:02:47]} 20. axb5 {[%emt 0:04:12]} Bxb5 {[%emt 0:01:33]} 21. Rb1 {[%emt 0:00:39]} Rb8 {[%emt 0:03:19]} 22. Bd1 {[%emt 0:00:33]} Ke7 {[%emt 0:00:07]} 23. Ne2 {[%emt 0:00:30]} a4 {[%emt 0:10:49]} 24. Bc1 {[%emt 0:00:31]} Na5 {[%emt 0:01:08]} 25. Ba3+ {[%emt 0:00:16]} Kd7 {[%emt 0:00:02]} 26. Rxb5 {[%emt 0:00:35]} Rxb5 {[%emt 0:03:19]} 27. Bxa4 {[%emt 0:00:06]} Kc6 {[%emt 0:01:01]} 28. Rg4 {[%emt 0:00:59]} Rg8 {[%emt 0:00:09]} 29. Bc1 {[%emt 0:00:37]} Ne7 {[%emt 0:00:39]} 30. Ba3 {[%emt 0:00:30]} Nd5 {[%emt 0:00:05]} 31. Bc1 {[%emt 0:00:31]} Ne7 {[%emt 0:00:04]} 32. Ng3 {[%emt 0:00:30]} Kb6 {[%emt 0:00:50]} 33. Bxb5 {[%emt 0:00:13]} Kxb5 {[%emt 0:00:02]} 34. Ne4 {[%emt 0:00:31]} Ka4 {[%emt 0:00:32]} 35. Nc5+ {[%emt 0:00:45]} Kb5 {[%emt 0:00:30]} 36. Ne4 {[%emt 0:00:33]} Ka4 {[%emt 0:00:04]} 37. Nc5+ {[%emt 0:00:30]} Kb5 {[%emt 0:00:04]} 38. Ne4 {[%emt 0:00:30]} Ka4 {[%emt 0:00:29]} 1/2-1/2

[Event "29. Klatovy A 2023"]
[Site "Klatovy"]
[Date "2023.07.05"]
[Round "5.9"]
[White "Kupsa, Matej 2001"]
[Black "Flajsman, Petr"]
[Result "1-0"]
[ECO "D32"]
[WhiteElo "2145"]
[BlackElo "1956"]
[PlyCount "93"]
[EventDate "2023.07.01"]
[EventType "swiss"]
[EventRounds "9"]
[EventCountry "CZE"]
[TimeControl "120+30"]

1. Nf3 {[%emt 18:50:50]} Nf6 2. b3 {[%emt 0:04:22]} d5 {[%emt 0:03:46]} 3. Bb2 {[%emt 0:01:36]} c5 {[%emt 0:00:11]} 4. e3 {[%emt 0:01:34]} e6 {[%emt 0:07:10]} 5. c4 {[%emt 0:00:06]} Be7 {[%emt 0:04:19]} 6. Nc3 {[%emt 0:01:31]} O-O {[%emt 0:00:45]} 7. cxd5 {[%emt 0:06:41]} exd5 {[%emt 0:01:01]} 8. d4 {[%emt 0:05:14]} Nc6 {[%emt 0:02:48]} 9. Be2 {[%emt 0:07:30]} Bg4 {[%emt 0:10:37]} 10. dxc5 {[%emt 0:05:10]} Bxc5 {[%emt 0:00:08]} 11. O-O {[%emt 0:04:10]} Be6 {[%emt 0:04:18]} 12. Rc1 {[%emt 0:05:16]} Be7 {[%emt 0:01:53]} 13. Nd4 {[%emt 0:02:04]} Rc8 {[%emt 0:23:45]} 14. Na4 {[%emt 0:20:54]} Nxd4 {[%emt 0:18:51]} 15. Qxd4 {[%emt 0:03:57]} b6 {[%emt 0:00:13]} 16. Rxc8 {[%emt 0:03:19]} Qxc8 {[%emt 0:01:38]} 17. Rc1 {[%emt 0:00:03]} Qb7 {[%emt 0:01:00]} 18. Bf3 {[%emt 0:06:35]} Rd8 {[%emt 0:06:45]} 19. Nc3 {[%emt 0:07:49]} h6 {[%emt 0:07:47]} 20. Nb5 {[%emt 0:13:37]} Rc8 {[%emt 0:05:02]} 21. Rxc8+ {[%emt 0:02:08]} Bxc8 {[%emt 0:00:08]} 22. Qe5 {[%emt 0:04:44]} Qd7 {[%emt 0:04:49]} 23. Qc7 {[%emt 0:12:06]} Qxb5 {[%emt 0:12:18]} 24. Qxc8+ {[%emt 0:00:07]} Kh7 {[%emt 0:00:21]} 25. Qf5+ {[%emt 0:00:32]} g6 {[%emt 0:00:31]} 26. Qe5 {[%emt 0:02:11]} Qd3 {[%emt 0:01:34]} 27. g3 {[%emt 0:01:10]} Bd8 {[%emt 0:00:28]} 28. Kg2 {[%emt 0:01:27]} g5 {[%emt 0:01:01]} 29. h3 {[%emt 0:00:30]} Qc2 {[%emt 0:01:03]} 30. Bd4 {[%emt 0:01:15]} Qc6 {[%emt 0:01:49]} 31. Qf5+ {[%emt 0:00:59]} Kg8 {[%emt 0:00:32]} 32. Qe5 {[%emt 0:02:56]} Qe6 {[%emt 0:01:15]} 33. Qb8 {[%emt 0:01:48]} Qe7 {[%emt 0:00:01]} 34. Qc8 {[%emt 0:01:39]} Ne4 {[%emt 0:00:27]} 35. Qc6 {[%emt 0:01:03]} Qe6 {[%emt 0:00:04]} 36. Qa8 {[%emt 0:00:26]} Qd6 {[%emt 0:01:18]} 37. Bxe4 {[%emt 0:00:20]} dxe4 {[%emt 0:00:05]} 38. Qxe4 {[%emt 0:00:03]} a5 {[%emt 0:01:05]} 39. Qe8+ {[%emt 0:00:17]} Qf8 {[%emt 0:00:40]} 40. Qxf8+ {[%emt 0:00:28]} Kxf8 {[%emt 0:00:01]} 41. Kf3 {[%emt 0:00:08]} Ke7 {[%emt 0:02:14]} 42. Ke4 {[%emt 0:00:17]} Ke6 {[%emt 0:00:07]} 43. g4 {[%emt 0:00:09]} f6 {[%emt 0:00:08]} 44. a4 {[%emt 0:00:26]} Bc7 {[%emt 0:00:45]} 45. f4 {[%emt 0:00:44]} Bd8 {[%emt 0:00:18]} 46. Bb2 {[%emt 0:00:46]} Be7 {[%emt 0:00:21]} 47. f5+ {[%emt 0:01:45]} 1-0

[Event "29. Klatovy A 2023"]
[Site "Klatovy"]
[Date "2023.07.05"]
[Round "5.10"]
[White "Kishore, Kumar Jaganathan"]
[Black "Jordanov, Mihail"]
[Result "1-0"]
[ECO "D11"]
[WhiteElo "1860"]
[BlackElo "2140"]
[PlyCount "89"]
[EventDate "2023.07.01"]
[EventType "swiss"]
[EventRounds "9"]
[EventCountry "CZE"]
[TimeControl "120+30"]

1. d4 {[%emt 0:00:44]} d5 {[%emt 0:00:20]} 2. c4 {[%emt 0:00:07]} c6 {[%emt 0:00:05]} 3. Nf3 {[%emt 0:00:28]} Nf6 {[%emt 0:00:17]} 4. g3 {[%emt 0:00:07]} Bf5 {[%emt 0:00:14]} 5. Nc3 {[%emt 0:00:31]} e6 {[%emt 0:00:26]} 6. Nh4 {[%emt 0:00:28]} dxc4 {[%emt 0:01:10]} 7. Nxf5 {[%emt 0:00:43]} exf5 {[%emt 0:00:07]} 8. e3 {[%emt 0:00:38]} Nbd7 {[%emt 0:00:29]} 9. Bxc4 {[%emt 0:00:23]} Nb6 {[%emt 0:00:59]} 10. Bb3 {[%emt 0:00:31]} Qd7 {[%emt 0:00:56]} 11. f3 {[%emt 0:02:06]} O-O-O {[%emt 0:11:10]} 12. Bd2 {[%emt 0:03:02]} h5 {[%emt 0:03:29]} 13. Qe2 {[%emt 0:00:40]} h4 {[%emt 0:05:41]} 14. O-O-O {[%emt 0:03:57]} hxg3 {[%emt 0:05:09]} 15. hxg3 {[%emt 0:00:07]} Bd6 {[%emt 0:01:50]} 16. Rxh8 {[%emt 0:17:08]} Rxh8 {[%emt 0:09:26]} 17. Be1 {[%emt 0:02:00]} Re8 {[%emt 0:18:08]} 18. e4 {[%emt 0:03:27]} Bb4 {[%emt 0:02:04]} 19. e5 {[%emt 0:00:45]} Nfd5 {[%emt 0:02:15]} 20. f4 {[%emt 0:15:11]} Be7 {[%emt 0:05:19]} 21. a4 {[%emt 0:07:27]} Rh8 {[%emt 0:06:10]} 22. a5 {[%emt 0:06:46]} Na8 {[%emt 0:00:26]} 23. Nxd5 {[%emt 0:07:28]} cxd5 {[%emt 0:00:07]} 24. Kb1 {[%emt 0:00:29]} Nc7 {[%emt 0:06:29]} 25. Rc1 {[%emt 0:00:57]} Kb8 {[%emt 0:00:36]} 26. Qc2 {[%emt 0:03:27]} Na6 {[%emt 0:01:58]} 27. Ba4 {[%emt 0:01:28]} Qe6 {[%emt 0:00:05]} 28. g4 {[%emt 0:05:04]} g6 {[%emt 0:15:22]} 29. gxf5 {[%emt 0:00:17]} Qxf5 {[%emt 0:01:04]} 30. Qxf5 {[%emt 0:00:18]} gxf5 {[%emt 0:00:02]} 31. Bd7 {[%emt 0:08:44]} Nc7 {[%emt 0:04:27]} 32. Bxf5 {[%emt 0:01:08]} Ne6 {[%emt 0:04:38]} 33. Bxe6 {[%emt 0:09:33]} fxe6 {[%emt 0:00:06]} 34. Bc3 {[%emt 0:00:13]} Rh7 {[%emt 0:02:45]} 35. a6 {[%emt 0:04:56]} bxa6 {[%emt 0:04:18]} 36. Ba5 {[%emt 0:00:41]} Bh4 {[%emt 0:04:58]} 37. Rh1 {[%emt 0:03:52]} Rh6 {[%emt 0:00:47]} 38. f5 {[%emt 0:01:05]} exf5 {[%emt 0:01:59]} 39. Bd2 {[%emt 0:00:44]} Rh8 {[%emt 0:04:08]} 40. Bg5 {[%emt 0:01:20]} Rh5 {[%emt 0:00:05]} 41. Bxh4 {[%emt 0:00:17]} f4 {[%emt 0:00:06]} 42. e6 {[%emt 0:00:12]} Rh8 {[%emt 0:00:59]} 43. e7 {[%emt 0:00:53]} Kc8 {[%emt 0:00:08]} 44. Re1 {[%emt 0:00:20]} Kd7 {[%emt 0:00:40]} 45. Bf6 {[%emt 0:02:34]} 1-0

[Event "29. Klatovy A 2023"]
[Site "Klatovy"]
[Date "2023.07.05"]
[Round "5.11"]
[White "Hladky, Tadeas"]
[Black "Munk, Petr"]
[Result "1/2-1/2"]
[ECO "B06"]
[WhiteElo "2046"]
[BlackElo "2096"]
[PlyCount "22"]
[EventDate "2023.07.01"]
[EventType "swiss"]
[EventRounds "9"]
[EventCountry "CZE"]
[TimeControl "120+30"]

1. e4 {[%emt 0:00:02]} g6 {[%emt 0:00:26]} 2. d4 {[%emt 0:00:09]} d6 {[%emt 0:00:06]} 3. Nc3 {[%emt 0:00:13]} Bg7 {[%emt 0:00:15]} 4. f4 {[%emt 0:00:27]} a6 {[%emt 0:00:24]} 5. Nf3 {[%emt 0:00:09]} b5 {[%emt 0:00:08]} 6. Bd3 {[%emt 0:00:08]} Bb7 {[%emt 0:03:11]} 7. O-O {[%emt 0:03:46]} Nd7 {[%emt 0:00:06]} 8. e5 {[%emt 0:01:58]} c5 {[%emt 0:01:57]} 9. Be4 {[%emt 0:02:34]} Bxe4 {[%emt 0:02:40]} 10. Nxe4 {[%emt 0:00:11]} cxd4 {[%emt 0:00:43]} 11. exd6 {[%emt 0:01:51]} Qb6 {[%emt 0:08:21]} 1/2-1/2

[Event "29. Klatovy A 2023"]
[Site "Klatovy"]
[Date "2023.07.05"]
[Round "5.12"]
[White "Palek, Miroslav"]
[Black "Polak, Michal 2002"]
[Result "1-0"]
[ECO "B07"]
[WhiteElo "2091"]
[BlackElo "1959"]
[PlyCount "73"]
[EventDate "2023.07.01"]
[EventType "swiss"]
[EventRounds "9"]
[EventCountry "CZE"]
[TimeControl "120+30"]

1. d4 {[%emt 0:00:07]} d6 {[%emt 0:00:44]} 2. e4 {[%emt 0:00:31]} Nf6 {[%emt 0:00:47]} 3. Nc3 {[%emt 0:00:14]} e5 {[%emt 0:03:10]} 4. Nge2 {[%emt 0:01:59]} Nbd7 {[%emt 0:05:03]} 5. g3 {[%emt 0:00:23]} g6 {[%emt 0:03:06]} 6. Bg2 {[%emt 0:00:31]} Bg7 {[%emt 0:00:17]} 7. h3 {[%emt 0:00:21]} O-O {[%emt 0:01:53]} 8. Be3 {[%emt 0:00:24]} c6 {[%emt 0:04:27]} 9. a4 {[%emt 0:01:43]} Qc7 {[%emt 0:06:13]} 10. O-O {[%emt 0:00:48]} b6 {[%emt 0:05:26]} 11. f4 {[%emt 0:15:51]} Bb7 {[%emt 0:08:36]} 12. dxe5 {[%emt 0:04:03]} dxe5 {[%emt 0:00:08]} 13. f5 {[%emt 0:00:17]} a6 {[%emt 0:15:25]} 14. g4 {[%emt 0:03:33]} h6 {[%emt 0:00:13]} 15. g5 {[%emt 0:03:51]} hxg5 {[%emt 0:00:41]} 16. Bxg5 {[%emt 0:01:03]} b5 {[%emt 0:12:28]} 17. Ng3 {[%emt 0:05:14]} Qb6+ {[%emt 0:06:21]} 18. Kh1 {[%emt 0:03:11]} c5 {[%emt 0:03:16]} 19. a5 {[%emt 0:06:05]} Qc7 {[%emt 0:02:33]} 20. fxg6 {[%emt 0:10:20]} fxg6 {[%emt 0:00:10]} 21. Nd5 {[%emt 0:03:14]} Nxd5 {[%emt 0:03:28]} 22. exd5 {[%emt 0:00:14]} Rxf1+ {[%emt 0:01:27]} 23. Qxf1 {[%emt 0:00:14]} Rf8 {[%emt 0:00:40]} 24. Qd3 {[%emt 0:00:35]} Nf6 {[%emt 0:12:35]} 25. Qxg6 {[%emt 0:13:57]} Bxd5 {[%emt 0:03:05]} 26. Bxd5+ {[%emt 0:03:36]} Nxd5 {[%emt 0:00:05]} 27. Nf5 {[%emt 0:01:39]} Nf4 {[%emt 0:03:31]} 28. Bxf4 {[%emt 0:00:26]} exf4 {[%emt 0:00:05]} 29. Rg1 {[%emt 0:00:30]} Rf7 {[%emt 0:03:14]} 30. Nh6+ {[%emt 0:00:20]} Kf8 {[%emt 0:00:12]} 31. Nxf7 {[%emt 0:01:00]} Qxf7 {[%emt 0:00:13]} 32. Qxf7+ {[%emt 0:00:06]} Kxf7 {[%emt 0:00:03]} 33. c3 {[%emt 0:01:11]} Be5 {[%emt 0:00:48]} 34. Rd1 {[%emt 0:00:25]} Ke6 {[%emt 0:02:11]} 35. Kg2 {[%emt 0:06:10]} c4 {[%emt 0:01:49]} 36. Re1 {[%emt 0:00:14]} Kf5 {[%emt 0:00:28]} 37. Rxe5+ {[%emt 0:00:45]} 1-0

[Event "29. Klatovy A 2023"]
[Site "Klatovy"]
[Date "2023.07.05"]
[Round "5.13"]
[White "Stary, Vojtech"]
[Black "Kopta, Pavel"]
[Result "1/2-1/2"]
[ECO "B22"]
[WhiteElo "1822"]
[BlackElo "2209"]
[PlyCount "110"]
[EventDate "2023.07.01"]
[EventType "swiss"]
[EventRounds "9"]
[EventCountry "CZE"]
[TimeControl "120+30"]

1. e4 {[%emt 0:01:51]} c5 {[%emt 0:00:09]} 2. c3 {[%emt 0:00:05]} d6 {[%emt 0:04:02]} 3. d4 {[%emt 0:00:18]} Nf6 {[%emt 0:00:07]} 4. dxc5 {[%emt 0:00:59]} Nc6 {[%emt 0:00:14]} 5. f3 {[%emt 0:00:16]} d5 {[%emt 0:02:45]} 6. exd5 {[%emt 0:00:30]} Nxd5 {[%emt 0:01:15]} 7. Bc4 {[%emt 0:00:37]} e6 {[%emt 0:02:21]} 8. Bxd5 {[%emt 0:00:33]} exd5 {[%emt 0:00:18]} 9. Be3 {[%emt 0:01:13]} Bf5 {[%emt 0:06:39]} 10. Ne2 {[%emt 0:04:26]} Be7 {[%emt 0:10:03]} 11. O-O {[%emt 0:05:59]} O-O {[%emt 0:00:52]} 12. Nd4 {[%emt 0:02:33]} Bg6 {[%emt 0:02:56]} 13. Nxc6 {[%emt 0:04:05]} bxc6 {[%emt 0:00:08]} 14. Nd2 {[%emt 0:02:09]} a5 {[%emt 0:04:56]} 15. f4 {[%emt 0:04:20]} Bd3 {[%emt 0:05:24]} 16. Re1 {[%emt 0:02:11]} Rb8 {[%emt 0:03:07]} 17. b3 {[%emt 0:02:10]} Qc7 {[%emt 0:02:52]} 18. Nf3 {[%emt 0:01:51]} Be4 {[%emt 0:00:55]} 19. Ne5 {[%emt 0:14:42]} Rfe8 {[%emt 0:04:07]} 20. Qd2 {[%emt 0:11:59]} f6 {[%emt 0:07:47]} 21. Nd3 {[%emt 0:01:12]} Qa7 {[%emt 0:02:45]} 22. Bd4 {[%emt 0:13:43]} Bxd3 {[%emt 0:06:18]} 23. Qxd3 {[%emt 0:00:19]} Bxc5 {[%emt 0:00:18]} 24. Bxc5 {[%emt 0:00:43]} Qxc5+ {[%emt 0:00:06]} 25. Qd4 {[%emt 0:01:46]} Qxd4+ {[%emt 0:05:05]} 26. cxd4 {[%emt 0:00:31]} Rxe1+ {[%emt 0:00:08]} 27. Rxe1 {[%emt 0:00:12]} Rb4 {[%emt 0:00:05]} 28. Rc1 {[%emt 0:05:06]} Rxd4 {[%emt 0:01:07]} 29. Rxc6 {[%emt 0:00:15]} Rd1+ {[%emt 0:01:30]} 30. Kf2 {[%emt 0:00:02]} Rd2+ {[%emt 0:00:09]} 31. Kf1 {[%emt 0:01:59]} d4 {[%emt 0:05:14]} 32. Rd6 {[%emt 0:02:51]} d3 {[%emt 0:09:51]} 33. Rd5 {[%emt 0:03:29]} Rxa2 {[%emt 0:08:41]} 34. Rxd3 {[%emt 0:00:23]} Kf7 {[%emt 0:00:36]} 35. Rd7+ {[%emt 0:01:21]} Kg6 {[%emt 0:00:56]} 36. Ra7 {[%emt 0:01:05]} h5 {[%emt 0:00:46]} 37. b4 {[%emt 0:01:13]} a4 {[%emt 0:00:10]} 38. b5 {[%emt 0:00:19]} h4 {[%emt 0:05:00]} 39. b6 {[%emt 0:03:00]} h3 {[%emt 0:00:13]} 40. gxh3 {[%emt 0:01:42]} Rxh2 {[%emt 0:01:10]} 41. Rxa4 {[%emt 0:02:09]} Rb2 {[%emt 0:00:23]} 42. Ra6 {[%emt 0:08:20]} Kf5 {[%emt 0:02:10]} 43. Ra7 {[%emt 0:02:23]} g6 {[%emt 0:01:43]} 44. Rb7 {[%emt 0:02:53]} Kxf4 {[%emt 0:01:43]} 45. Rb8 {[%emt 0:02:23]} f5 {[%emt 0:00:54]} 46. b7 {[%emt 0:01:31]} Kf3 {[%emt 0:00:31]} 47. Kg1 {[%emt 0:01:49]} f4 {[%emt 0:01:24]} 48. Rg8 {[%emt 0:01:20]} Rb1+ {[%emt 0:00:52]} 49. Kh2 {[%emt 0:00:12]} Rxb7 {[%emt 0:00:05]} 50. Rxg6 {[%emt 0:00:10]} Kf2 {[%emt 0:01:21]} 51. Rg2+ {[%emt 0:01:03]} Ke3 {[%emt 0:00:20]} 52. Ra2 {[%emt 0:02:13]} Rd7 {[%emt 0:00:48]} 53. Ra1 {[%emt 0:06:45]} Rd2+ {[%emt 0:08:21]} 54. Kg1 {[%emt 0:00:43]} Kf3 {[%emt 0:04:08]} 55. Ra3+ {[%emt 0:03:35]} Ke4 {[%emt 0:01:08]} 1/2-1/2

[Event "29. Klatovy A 2023"]
[Site "Klatovy"]
[Date "2023.07.05"]
[Round "5.14"]
[White "Folk, Petr"]
[Black "Zadrapa, Radek"]
[Result "1-0"]
[ECO "B99"]
[WhiteElo "2135"]
[BlackElo "2014"]
[PlyCount "63"]
[EventDate "2023.07.01"]
[EventType "swiss"]
[EventRounds "9"]
[EventCountry "CZE"]
[TimeControl "120+30"]

1. e4 {[%emt 0:01:18]} c5 {[%emt 0:00:05]} 2. Nf3 {[%emt 0:00:05]} d6 {[%emt 0:00:03]} 3. d4 {[%emt 0:00:04]} cxd4 {[%emt 0:00:04]} 4. Nxd4 {[%emt 0:00:04]} Nf6 {[%emt 0:00:04]} 5. Nc3 {[%emt 0:00:06]} a6 {[%emt 0:00:03]} 6. Bg5 {[%emt 0:00:39]} e6 {[%emt 0:01:17]} 7. f4 {[%emt 0:00:25]} Be7 {[%emt 0:00:04]} 8. Qf3 {[%emt 0:00:09]} Qc7 {[%emt 0:00:05]} 9. O-O-O {[%emt 0:00:14]} Nbd7 {[%emt 0:00:06]} 10. g4 {[%emt 0:00:26]} b5 {[%emt 0:00:25]} 11. Bxf6 {[%emt 0:03:26]} Nxf6 {[%emt 0:00:05]} 12. g5 {[%emt 0:00:08]} Nd7 {[%emt 0:00:04]} 13. f5 {[%emt 0:00:25]} O-O {[%emt 0:01:19]} 14. Qg3 {[%emt 0:05:33]} b4 {[%emt 0:08:27]} 15. Nce2 {[%emt 0:17:45]} Kh8 {[%emt 0:06:24]} 16. fxe6 {[%emt 0:17:29]} Nc5 {[%emt 0:00:51]} 17. Bg2 {[%emt 0:01:07]} fxe6 {[%emt 0:01:31]} 18. e5 {[%emt 0:09:53]} d5 {[%emt 0:03:54]} 19. Nf4 {[%emt 0:08:24]} Bd7 {[%emt 0:06:08]} 20. Kb1 {[%emt 0:00:58]} a5 {[%emt 0:02:35]} 21. h4 {[%emt 0:12:00]} a4 {[%emt 0:02:56]} 22. h5 {[%emt 0:03:24]} Kg8 {[%emt 0:29:46]} 23. Ng6 {[%emt 0:00:37]} Rf7 {[%emt 0:04:20]} 24. Rhf1 {[%emt 0:06:03]} hxg6 {[%emt 0:10:22]} 25. hxg6 {[%emt 0:01:53]} Rxf1 {[%emt 0:02:07]} 26. Rxf1 {[%emt 0:00:07]} Be8 {[%emt 0:00:13]} 27. Nxe6 {[%emt 0:05:25]} Qd7 {[%emt 0:14:20]} 28. Nf4 {[%emt 0:09:14]} Ne4 {[%emt 0:10:22]} 29. Bxe4 {[%emt 0:01:06]} dxe4 {[%emt 0:00:05]} 30. Qh4 {[%emt 0:03:19]} Bxg5 {[%emt 0:02:52]} 31. Qh7+ {[%emt 0:03:03]} Kf8 {[%emt 0:00:06]} 32. Nd5+ {[%emt 0:03:29]} 1-0

[Event "29. Klatovy A 2023"]
[Site "Klatovy"]
[Date "2023.07.05"]
[Round "5.15"]
[White "Ret, Adam Josef"]
[Black "Mik, Tomas"]
[Result "1/2-1/2"]
[ECO "A39"]
[WhiteElo "2133"]
[BlackElo "1940"]
[PlyCount "106"]
[EventDate "2023.07.01"]
[EventType "swiss"]
[EventRounds "9"]
[EventCountry "CZE"]
[TimeControl "120+30"]

1. c4 {[%emt 0:00:02]} Nf6 {[%emt 0:00:06]} 2. g3 {[%emt 0:00:04]} g6 {[%emt 0:00:07]} 3. Bg2 {[%emt 0:00:05]} Bg7 {[%emt 0:00:07]} 4. Nc3 {[%emt 0:00:20]} O-O {[%emt 0:00:59]} 5. d4 {[%emt 0:01:03]} c5 {[%emt 0:01:22]} 6. Nf3 {[%emt 0:01:25]} cxd4 {[%emt 0:02:11]} 7. Nxd4 {[%emt 0:02:09]} Nc6 {[%emt 0:00:30]} 8. O-O {[%emt 0:01:37]} a6 {[%emt 0:01:47]} 9. e3 {[%emt 0:04:56]} Qc7 {[%emt 0:02:32]} 10. b3 {[%emt 0:13:48]} d6 {[%emt 0:05:43]} 11. Bb2 {[%emt 0:02:08]} e6 {[%emt 0:09:18]} 12. Qd2 {[%emt 0:15:47]} Bd7 {[%emt 0:03:50]} 13. Rfd1 {[%emt 0:03:01]} Rfd8 {[%emt 0:00:34]} 14. Rac1 {[%emt 0:01:38]} Qb6 {[%emt 0:11:17]} 15. Nde2 {[%emt 0:10:24]} Be8 {[%emt 0:02:09]} 16. Ba3 {[%emt 0:06:49]} Bf8 {[%emt 0:03:05]} 17. Qb2 {[%emt 0:05:45]} Be7 {[%emt 0:03:47]} 18. Rd2 {[%emt 0:07:50]} Rd7 {[%emt 0:01:09]} 19. Rcd1 {[%emt 0:02:36]} Rad8 {[%emt 0:00:41]} 20. Qa1 {[%emt 0:01:25]} h5 {[%emt 0:05:43]} 21. Nf4 {[%emt 0:04:42]} Qa5 {[%emt 0:10:24]} 22. Bb2 {[%emt 0:01:49]} Nh7 {[%emt 0:01:18]} 23. Ne4 {[%emt 0:10:48]} Qf5 {[%emt 0:15:23]} 24. f3 {[%emt 0:08:28]} Qa5 {[%emt 0:02:49]} 25. Bc3 {[%emt 0:01:34]} Qb6 {[%emt 0:00:46]} 26. Kf2 {[%emt 0:01:54]} Nb4 {[%emt 0:10:08]} 27. a3 {[%emt 0:10:21]} Nc6 {[%emt 0:05:12]} 28. b4 {[%emt 0:01:12]} a5 {[%emt 0:06:32]} 29. Qb2 {[%emt 0:03:29]} Ne5 {[%emt 0:01:49]} 30. Rd4 {[%emt 0:00:33]} g5 {[%emt 0:08:51]} 31. Ne2 {[%emt 0:01:28]} f5 {[%emt 0:01:30]} 32. c5 {[%emt 0:02:23]} dxc5 {[%emt 0:01:27]} 33. Rxd7 {[%emt 0:00:00]} Rxd7 {[%emt 0:07:24]} 34. Rxd7 {[%emt 0:00:32]} Nxd7 {[%emt 0:00:44]} 35. Nxc5 {[%emt 0:01:27]} Nxc5 {[%emt 0:01:43]} 36. bxc5 {[%emt 0:00:02]} Qxb2 {[%emt 0:00:19]} 37. Bxb2 {[%emt 0:00:01]} Bxc5 {[%emt 0:00:09]} 38. Nd4 {[%emt 0:00:38]} Bd7 {[%emt 0:01:33]} 39. Nb3 {[%emt 0:00:25]} Bb6 {[%emt 0:00:39]} 40. f4 {[%emt 0:00:27]} gxf4 {[%emt 0:00:37]} 41. gxf4 {[%emt 0:00:04]} Bc6 {[%emt 0:01:30]} 42. Bxc6 {[%emt 0:00:43]} bxc6 {[%emt 0:00:04]} 43. Bc3 {[%emt 0:00:49]} a4 {[%emt 0:00:15]} 44. Nd2 {[%emt 0:00:01]} Bc5 {[%emt 0:01:17]} 45. Nc4 {[%emt 0:00:20]} Nf8 {[%emt 0:01:06]} 46. Bb2 {[%emt 0:04:41]} Ng6 {[%emt 0:00:16]} 47. Kf3 {[%emt 0:00:53]} Kf7 {[%emt 0:00:55]} 48. Na5 {[%emt 0:00:59]} Ne7 {[%emt 0:00:20]} 49. Nb7 {[%emt 0:00:16]} Bb6 {[%emt 0:00:58]} 50. Nd6+ {[%emt 0:00:12]} Kf8 {[%emt 0:00:39]} 51. e4 {[%emt 0:00:33]} fxe4+ {[%emt 0:00:25]} 52. Kxe4 {[%emt 0:00:10]} Bc7 {[%emt 0:00:47]} 53. Nb7 {[%emt 0:00:59]} Nd5 {[%emt 0:01:22]} 1/2-1/2